Cogmind - Beta 16 @@@ ROGUE MODE // 2025.12.03 @ 22:04:42 Player: DietSnapple Result: Destroyed by G-47 Trooper with Particle Gun Performance ------------- Evolutions (2) 1000 Regions Visited (5) 1000 Robots Destroyed (22) 110 Value Destroyed (560) 560 Prototype IDs (25) 500 Alien Tech Used (0) 0 Bonus (300) 300 TOTAL SCORE: 3470 Bonus ------- Aligned with FarCom 300 Cogmind --------- Core Integrity 0/550 Matter 198/300 Energy 97/100 System Corruption 0% Temperature Warning (336) Movement Hovering (160) Ox1 Location -8/Materials Parts ------- > --- POWER (1) -------- Backup Power III > --- PROPULSION (2) --- Backup Propulsion III > --- UTILITY (5) ------ Backup Plating III Backup Plating III > --- WEAPON (3) ------- Backup Laser III Backup Laser III Assault Cannon > --- INVENTORY (5) ---- Small Storage Unit Experimental Sensor Array Utility Shielding Shield Generator Small Laser Peak State ------------ > --- POWER ------------ (None) > --- PROPULSION ------- Wheel > --- UTILITY ---------- Improved Heat Sink Large Storage Unit Experimental Sensor Array Sensor Drone Bay > --- WEAPON ----------- Ripper > --- INVENTORY -------- Ion Engine Aluminum Leg Aluminum Leg Cooling System Small Storage Unit Utility Shielding Shield Generator Shield Generator Chronowheel Small Laser Grenade Launcher [Rating: 28] Favorites ----------- Power Ion Engine Engine Ion Engine Propulsion Wheel Leg Aluminum Leg Wheel Wheel Hover Unit Backup Propulsion III Utility Large Storage Unit Device Improved Heat Sink Storage Large Storage Unit Protection Backup Plating III Weapon EM Pulse Gun Energy Gun EM Pulse Gun Ballistic Gun Light Assault Rifle Ballistic Cannon Assault Cannon Launcher Grenade Launcher Slashing Weapon Ripper Build | -11 -10 -10 -10 -9 -8 ------- Run | Yrd Mat Min Exi Min Mat Slots Evolved 4 | . . . . . 4 Power . | . . . . . . Propulsion . | . . . . . . Utility 3 | . . . . . 3 Weapon 1 | . . . . . 1 Parts Attached 18 | 6 4 . . . 8 Power 1 | 1 . . . . . Engine 1 | 1 . . . . . Core . | . . . . . . Reactor . | . . . . . . Propulsion 4 | 2 . . . . 2 Treads . | . . . . . . Leg 2 | . . . . . 2 Wheel 2 | 2 . . . . . Hover . | . . . . . . Flight . | . . . . . . Utility 6 | 1 2 . . . 3 Device 4 | . 1 . . . 3 Storage 2 | 1 1 . . . . Processor . | . . . . . . Hackware . | . . . . . . Protection . | . . . . . . Artifact . | . . . . . . Weapon 7 | 2 2 . . . 3 Energy Gun 2 | . 2 . . . . Energy Cannon . | . . . . . . Ballistic Gun 2 | 2 . . . . . Ballistic Cannon 1 | . . . . . 1 Launcher 1 | . . . . . 1 Special Weapon . | . . . . . . Impact Weapon . | . . . . . . Slashing Weapon 1 | . . . . . 1 Piercing Weapon . | . . . . . . Special Melee Weapon . | . . . . . . Unidentified Prototypes 2 | . . . . . 2 Parts Lost 13 | . . . . . 13 Power 1 | . . . . . 1 Propulsion 5 | . . . . . 5 Utility 3 | . . . . . 3 Weapon 4 | . . . . . 4 Highest Loss Streak 8 | . . . . . 8 To Critical Strikes . | . . . . . . Average Backups 9 | 1 6 11 14 14 9 Power . | . 1 1 1 1 . Propulsion 1 | . 2 2 2 2 1 Utility 4 | . 1 6 7 7 5 Weapon 2 | . 1 2 3 3 1 Tool/Special . | . . . . . . Unused Backups 6 | . . . . . 6 Power 1 | . . . . . 1 Propulsion . | . . . . . . Utility 4 | . . . . . 4 Weapon 1 | . . . . . 1 Tool/Special . | . . . . . . Average Slot Usage (%) 83 | . 93 100 76 92 48 Engine 12 | . 14 14 14 14 4 Wheel 24 | . 28 28 28 28 6 Device 10 | . 7 14 14 14 8 Storage 12 | . 14 14 14 14 6 Energy Gun 11 | . . 28 5 20 9 Ballistic Gun 8 | . 27 . . . . Peak Build Rating 28 | 6 10 12 12 13 28 Average Rating 10 | 4 7 11 10 12 16 On Entrance 8 | . 6 10 12 11 13 Avg Prop Armor Cover (%) . | . . . . . . Naked Turns 21 | . . . . . 21 Heaviest Build 38 | 12 30 30 30 30 38 Greatest Support 26 | 26 26 26 26 26 26 Greatest Overweight (x) 12 | . 1 1 1 1 12 Average Overweight (x) . | . . 1 . . 1 Largest Inventory Capacity 15 | 8 15 15 15 15 15 Average Capacity 13 | 6 14 15 15 15 11 Most Carried 15 | 4 10 12 15 15 14 Average Carried 9 | 2 6 11 14 14 9 Final Capacity 15 | 8 15 15 15 15 5 Final Carried 15 | 4 10 12 15 14 5 Class Distribution -------------------- 95% | Mutant 4% | Tank Dominant Class ---------------- Mutant | -10/Materials Mutant | -10/Mines Mutant | -10/Exiles Mutant | -9/Mines Mutant | -8/Materials Resources | -11 -10 -10 -10 -9 -8 ----------- Run | Yrd Mat Min Exi Min Mat Matter Collected 356 | 208 126 20 . . 2 Remotely . | . . . . . . Salvage Created 612 | . 356 . . . 256 Parts 49 | . 28 . . . 21 Haulers Intercepted . | . . . . . . Recyclers Shooed . | . . . . . . Parts Field Recycled . | . . . . . . Retrieved Matter . | . . . . . . Parts Self-Destructed . | . . . . . . Prevented . | . . . . . . Parts Restored . | . . . . . . Kills | -11 -10 -10 -10 -9 -8 ------- Run | Yrd Mat Min Exi Min Mat Combat Hostiles Destroyed 21 | . 12 . . . 9 Guns 15 | . 12 . . . 3 Cannons 3 | . . . . . 3 AOE 3 | . . . . . 3 Classes Destroyed 4 | . 2 . . . 2 Worker 1 | . . . . . 1 Swarmer 10 | . 5 . . . 5 Grunt 9 | . 7 . . . 2 Specialist 2 | . . . . . 2 Best Kill Streak 6 | . 4 . . . 6 Combat Bots Only 6 | . 4 . . . 6 Max Kills in Single Turn 3 | . 1 . . . 3 Gunslinging . | . . . . . . Exploded 2 | . . . . . 2 Melee . | . . . . . . Uniques/NPCs Destroyed . | . . . . . . Combat | -11 -10 -10 -10 -9 -8 -------- Run | Yrd Mat Min Exi Min Mat Hostile Shots Fired 220 | . 34 . . . 186 Missed 71 | . 11 . . . 60 Hits 149 | . 23 . . . 126 Projectile 149 | . 23 . . . 126 Critical Strikes 8 | . . . . . 8 Damage Taken 2047 | . 263 . . 4 1780 Core 655 | . 93 . . . 562 Absorbed by Shields . | . . . . . . Core Remaining (%) 81 | 100 . . . 62 . Volleys Fired 39 | . 27 . . 1 11 Largest 3 | . 2 . . 2 3 Hottest 117 | . 40 . . 80 117 Shots Fired 85 | . 54 . . 2 29 Gun 74 | . 54 . . 2 18 Cannon 9 | . . . . . 9 Launcher 2 | . . . . . 2 Special . | . . . . . . Kinetic 63 | . 54 . . . 9 Thermal 18 | . . . . . 18 Explosive 2 | . . . . . 2 Electromagnetic 2 | . . . . 2 . Robot Hit Streak 11 | . 11 . . 1 9 Robot Miss Streak 3 | . 2 . . 1 3 Penetration Max . | . . . . . . Secondary Targets . | . . . . . . Shots Hit Robots 55 | . 38 . . 1 16 Core Hits 47 | . 26 . . 1 20 Critical Kills . | . . . . . . Critical Parts Destroyed . | . . . . . . Critical Strikes 1 | . . . . . 1 Blast 1 | . . . . . 1 Melee Attacks 5 | . . . . . 5 Impact . | . . . . . . Slashing 5 | . . . . . 5 Piercing . | . . . . . . Sneak Attacks . | . . . . . . Combat Hostiles . | . . . . . . Follow-up Attacks . | . . . . . . Damage Inflicted 947 | . 309 . . 20 618 Guns 464 | . 309 . . 12 143 Cannons 152 | . . . . . 152 Explosions 323 | . . . . . 323 Melee . | . . . . . . Ramming 8 | . . . . 8 . Kinetic 461 | . 309 . . . 152 Thermal 143 | . . . . . 143 Explosive 323 | . . . . . 323 Electromagnetic 12 | . . . . 12 . Impact . | . . . . . . Slashing . | . . . . . . Piercing . | . . . . . . Highest Corruption 2 | . 2 2 2 2 . Average Corruption 1 | . 1 2 2 2 . Corruption Purged . | . . . . . . Corruption Blocked . | . . . . . . Effects 9 | . 2 1 3 3 . Message Errors 3 | . . 1 1 1 . Matter Fused 1 | . . . . 1 . Heat Flow Errors 3 | . 2 . 1 . . Energy Discharges 1 | . . . . 1 . Data Loss (minor) 1 | . . . 1 . . Overload Shots . | . . . . . . Overflow Damage 18 | . . . . . 18 Projectiles . | . . . . . . Explosions 18 | . . . . . 18 Melee . | . . . . . . Knockbacks 4 | . . . . . 4 Impact . | . . . . . . Kinetic 3 | . . . . . 3 Secondary 1 | . . . . . 1 Self-Inflicted Damage 44 | . . . . 4 40 Shots 1 | . . . . . 1 Rammed 1 | . . . . 1 . Targets Rammed 1 | . . . . 1 . Kicked . | . . . . . . Crushed . | . . . . . . Highest Temperature 309 | . 207 . 96 . 309 Average Temperature 112 | . 56 . 62 . 147 Received Heat Transfer 516 | . 84 . . . 432 Siege Activations . | . . . . . . Martial Activations . | . . . . . . Shielding Activations . | . . . . . . Robots Disrupted . | . . . . . . Combat Hostiles . | . . . . . . Robots Corrupted . | . . . . . . Combat Hostiles . | . . . . . . Parts Fried . | . . . . . . Impact Corruptions . | . . . . . . Robots Melted . | . . . . . . Combat Hostiles . | . . . . . . Parts Melted 1 | . . . . . 1 Heat Transferred 407 | . . . . . 407 Parts Sabotaged . | . . . . . . Parts Stolen . | . . . . . . Parts Stripped . | . . . . . . Power Chain Reactions . | . . . . . . Alert | -11 -10 -10 -10 -9 -8 ------- Run | Yrd Mat Min Exi Min Mat Maximum Alert Level 1 | . . . . . 1 Low Security (%) 99 | 100 100 100 . 100 95 Level 1 . | . . . . . 4 Level 2 . | . . . . . . Level 3 . | . . . . . . Level 4 . | . . . . . . Level 5 . | . . . . . . High Security . | . . . . . . Max Security . | . . . . . . Peak Influence 245 | . 140 24 . . 245 Initial 24 | . . 24 . . . Average 37 | . 77 3 . . 43 Influence Increases 717 | . 280 . . . 437 Destroy 0b10 Robot/C 420 | . 240 . . . 180 Destroy 0b10 Robot/NC 5 | . . . . . 5 Destroy Leader 80 | . 40 . . . 40 Successful Hack 16 | . . . . . 16 Destroy Structure 16 | . . . . . 16 Lose Combat Pursuer 180 | . . . . . 180 Influence Decreases 472 | . 218 62 . . 192 Entered New Map 38 | . . 38 . . . Time Decay 332 | . 218 24 . . 90 Lost Part 86 | . . . . . 86 Lost Ally 16 | . . . . . 16 Squads Dispatched 9 | . 3 . . . 6 Investigation 1 | . 1 . . . . Extermination . | . . . . . . Reinforcement 6 | . 2 . . . 4 Assault . | . . . . . . Garrison 2 | . . . . . 2 Intercept . | . . . . . . Searches Triggered . | . . . . . . Construction Impeded 1 | . . . . . 1 Haulers Reinforced . | . . . . . . Active Scanning Responses . | . . . . . . Cargo Convoy Interrupts . | . . . . . . Stealth | -11 -10 -10 -10 -9 -8 --------- Run | Yrd Mat Min Exi Min Mat Distress Signals 3 | . 2 . . . 1 Communications Jammed . | . . . . . . Distress Signals . | . . . . . . Times Spotted 43 | . 21 . . . 22 Peak Tracking Total 13 | . 6 . . . 13 Tactical Retreats 6 | . . . . . 6 Traps | -11 -10 -10 -10 -9 -8 ------- Run | Yrd Mat Min Exi Min Mat Traps Triggered 2 | . 2 . . . . Indirectly . | . . . . . . Trap Hack Attempts . | . . . . . . Triggered . | . . . . . . Disarmed . | . . . . . . Reprogrammed . | . . . . . . Reused . | . . . . . . Traps Extracted . | . . . . . . Installed . | . . . . . . Triggered . | . . . . . . Machines | -11 -10 -10 -10 -9 -8 ---------- Run | Yrd Mat Min Exi Min Mat Machines Disabled . | . . . . . . Max in Single Turn . | . . . . . . Machines Repaired . | . . . . . . Machines Dismantled . | . . . . . . Machines Sabotaged . | . . . . . . Overloaded Fab Kills . | . . . . . . Hacking | -11 -10 -10 -10 -9 -8 --------- Run | Yrd Mat Min Exi Min Mat Machines Accessed 4 | . 1 1 1 . 1 Terminals 1 | . 1 . . . . Fabricators . | . . . . . . Repair Stations 1 | . . . . . 1 Recycling Units . | . . . . . . Scanalyzers . | . . . . . . Garrison Access . | . . . . . . Total Hacks 5 | . 2 1 1 . 1 Successful 3 | . . 1 1 . 1 Failed 2 | . 2 . . . . Catastrophic . | . . . . . . Database Lockouts . | . . . . . . Manual 3 | . 2 . 1 . . Terminals 2 | . 2 . . . . Fabricators . | . . . . . . Repair Stations 1 | . . . . . 1 Recycling Units . | . . . . . . Scanalyzers . | . . . . . . Garrison Access . | . . . . . . Terminal Hacks 2 | . . 1 1 . . Open Door 1 | . . 1 . . . Proto ID Catalog 1 | . . . 1 . . Fabricator Hacks . | . . . . . . Repair Station Hacks 1 | . . . . . 1 Refit 1 | . . . . . 1 Recycling Unit Hacks . | . . . . . . Scanalyzer . | . . . . . . Garrison Access Hacks . | . . . . . . Unauthorized Hacks . | . . . . . . Terminals . | . . . . . . Fabricators . | . . . . . . Repair Stations . | . . . . . . Recycling Units . | . . . . . . Scanalyzers . | . . . . . . Garrison Access . | . . . . . . Data Cores Recovered . | . . . . . . Used . | . . . . . . Hacking Detections 1 | . 1 . . . . Full Trace Events 1 | . 1 . . . . Feedback Events . | . . . . . . Feedback Blocked . | . . . . . . Robot Schematics Acquired . | . . . . . . Robots Built . | . . . . . . Authchips . | . . . . . . Time . | . . . . . . Total Robot Build Rating . | . . . . . . Part Schematics Acquired . | . . . . . . Parts Built . | . . . . . . Authchips . | . . . . . . Time . | . . . . . . Total Part Build Rating . | . . . . . . Part Studies Acquired . | . . . . . . Parts Repaired . | . . . . . . Time . | . . . . . . Parts Recycled . | . . . . . . Recycled Matter . | . . . . . . Retrieved Matter . | . . . . . . Retrieved Components . | . . . . . . Parts Scanalyzed . | . . . . . . Part Schematics Acquired . | . . . . . . Parts Damaged . | . . . . . . Bothacking | -11 -10 -10 -10 -9 -8 ------------ Run | Yrd Mat Min Exi Min Mat Used RIF Installer . | . . . . . . Robots Hacked . | . . . . . . Non-combat . | . . . . . . Combat . | . . . . . . Robot Hacks Applied . | . . . . . . Relay Couplers Released . | . . . . . . Fabnet Peak Effective % . | . . . . . . Robots Rewired . | . . . . . . Allies Hacked . | . . . . . . Hacks Repelled . | . . . . . . Allies | -11 -10 -10 -10 -9 -8 -------- Run | Yrd Mat Min Exi Min Mat Total Allies 1 | . . . . 1 . Largest Group 1 | . . . . 1 1 Highest-Rated Group 31 | . . . . 31 31 Highest-Rated Ally 31 | . . . . 31 31 Total Orders . | . . . . . . Ally Attacks 1 | . . . . . 1 Total Damage 21 | . . . . . 21 Kills . | . . . . . . Allies Corrupted . | . . . . . . Allies Melted . | . . . . . . Intel | -11 -10 -10 -10 -9 -8 ------- Run | Yrd Mat Min Exi Min Mat Active Infowar (turns) 1 | . . . . . 1 Sensors 1 | . . . . . 1 Robot Analysis Total . | . . . . . . Derelict Logs Recovered 2 | . . 1 . 1 . Drone Launches . | . . . . . . Drone Recoveries . | . . . . . . Exploration | -11 -10 -10 -10 -9 -8 ------------- Run | Yrd Mat Min Exi Min Mat Turns Passed 1596 | 81 505 250 207 280 273 Spaces Moved 1389 | 73 381 237 224 263 211 Core 47 | 1 . . . . 46 Treads . | . . . . . . Legs 11 | . . . . . 11 Wheels 1277 | 72 381 237 224 263 100 Hover 54 | . . . . . 54 Flight . | . . . . . . Fastest Speed 50 | 50 90 105 90 90 50 Average Speed 100 | 90 104 105 91 100 103 Slowest Speed 650 | 100 105 105 105 105 650 Overloaded Moves . | . . . . . . Propulsion Burnouts . | . . . . . . Robots Hopped . | . . . . . . Potential Cave-ins 3 | . . . . . 3 Cave-ins Triggered . | . . . . . . Exploration Rate (%) 42 | 5 78 53 60 32 26 Regions Visited 5 Branch Regions 3 Pre-discovered Areas . | . . . . . . Known Exits Taken 1 | . . . . 1 . Unknown Exits Taken 4 | 1 1 1 1 . . Scrap Searched 2 | . . 2 . . . Spaces Dug 5 | . . . . . 5 Terrain Destroyed 18 | . . . . . 18 Melee 5 | . . . . . 5 Projectile 3 | . . . . . 3 AOE 10 | . . . . . 10 Terrain Rammed . | . . . . . . Walls Destroyed . | . . . . . . Machines Disabled . | . . . . . . Actions | -11 -10 -10 -10 -9 -8 --------- Run | Yrd Mat Min Exi Min Mat Total 1504 | 84 442 238 226 277 237 Wait 38 | 2 25 . . 10 1 Move 1384 | 72 380 236 223 262 211 Hop . | . . . . . . Pick Up 13 | 4 5 2 1 1 . Fast Attach 9 | 6 2 . . . 1 Attach 9 | . . . . 2 7 Detach 4 | . 1 . 2 . 1 Swap 2 | . 2 . . . . Drop . | . . . . . . Fire 39 | . 27 . . 1 11 Melee 5 | . . . . . 5 Ram 1 | . . . . 1 . Kick . | . . . . . . Crush . | . . . . . . Escape Stasis . | . . . . . . Rewire . | . . . . . . Trap . | . . . . . . Miscellaneous . | . . . . . . Route ------- -11/Scrapyard -10/Materials (discovered 5 exits: [*Mat x3] / *Min / [*Sub]) -10/Mines (discovered 2 exits: [*Mat] / *Exi) -10/Exiles -9/Mines -8/Materials History --------- Turn | Location | Event 17 | -11/Scrapyard | Discovered new exit (range 16) 82 | -11/Scrapyard | Entered Materials 167 | -10/Materials | Discovered new exit (range 9) 247 | -10/Materials | Discovered new exit (range 3) 326 | -10/Materials | Build established: Mutant 428 | -10/Materials | Discovered new exit (range 11) 517 | -10/Materials | Discovered new exit (range 8) 559 | -10/Materials | Discovered new exit (range 15) 587 | -10/Materials | Entered Mines 643 | -10/Mines | Found the Drone Emporium 646 | -10/Mines | Found Prototype Device 665 | -10/Mines | Discovered new exit (range 8) 755 | -10/Mines | Found a damaged Exp. Sensor Array with a note attached 758 | -10/Mines | Found Prototype Device 783 | -10/Mines | Learned Materials emergency access door positions 816 | -10/Mines | Deemed a non-threat by the Exiles lab entrance 817 | -10/Mines | Discovered new exit (range 5) 837 | -10/Mines | Entered Exiles 863 | -10/Exiles | Met 8R-AWN 878 | -10/Exiles | Met EX-HEX 907 | -10/Exiles | Met EX-BIN 925 | -10/Exiles | Aligned with FarCom system 926 | -10/Exiles | Given EX-Vault access code 953 | -10/Exiles | Opened EX-Vault 958 | -10/Exiles | Found Chronowheel 976 | -10/Exiles | Warned to stay clear of 0b10 Research branches 991 | -10/Exiles | Exiles lab attacked by MAIN.C 1034 | -10/Exiles | Discovered new exit (range 10) 1044 | -10/Exiles | Left Exiles lab with Chronowheel 1044 | -10/Exiles | Entered Mines 1097 | -9/Mines | Identified exit to Materials 1116 | -9/Mines | A weapon hastily lodged in a ceiling crevice suddenly fell to the ground 1157 | -9/Mines | Received a Mining Laser from a helpful Derelict 1324 | -9/Mines | Entered Materials 1324 | -8/Materials | Accompanied by 1 ally 1324 | -8/Materials | Evolved 4 slots: Utility x3, Weapon x1 1417 | -8/Materials | Lost 4 parts (1p1n2w) 1429 | -8/Materials | Identified Sensor Drone Bay 1430 | -8/Materials | Identified Exp. Sensor Array 1465 | -8/Materials | Garrison activated, responded to threat 1469 | -8/Materials | Activated Chronowheel 1502 | -8/Materials | Core integrity fell below 50% 1505 | -8/Materials | Released all parts (1) 1509 | -8/Materials | Core integrity fell below 20% 1532 | -8/Materials | Lost 8 parts (3n3u2w) 1597 | -8/Materials | Destroyed by G-47 Trooper with Particle Gun Last Messages --------------- [Achievement: Fitting Room] 01535_ Acquired Assault Cannon. 01559_ K-01 Serf cleans the Fusion Modulator. 01567_ ALERT: Hostiles spotted, dispatching reinforcements to Terminal M012. 01570_ S-10 Pest destroyed. 01572_ K-01 Serf collects debris. 01573_ S-10 Pest destroyed. 01573_ X-57 Shotgunner knocked back. 01576_ K-01 Serf collects debris. 01578_ X-57 Shotgunner Nuclear Core blasted off. 01578_ X-57 Shotgunner knocked back. [Achievement: Bumper Bots] 01579_ Backup Propulsion III destroyed. 01579_ K-01 Serf sends out distress signal. 01582_ X-57 Shotgunner destroyed. 01585_ G-47 Trooper destroyed. 01588_ Imp. Heat Sink melted. 01588_ G-47 Trooper destroyed. 01595_ G-47 Trooper knocked back. 01597_ Critical hit (Burn: +37). Map ----- +----------------------------------------------------+ | | | | | | | | | | | | | | | ?????????????????????????????????????????????????? | | ?????????????????????????????????????????????????? | | ?????????????????????????????????????????????????? | | ?????????????????????????????????????????????????? | | ?????????????????????????????????????????????????? | | ?????????????????????????????????????????????????? | | ?????????????????????????????????????????????????? | | ?????????????????????????????????????????????????? | | ?????????????????????????????????###+##??????????? | | ????????????????????????????????? ???????????? | | ????????????????????????????????? ???????????? | | ????????????????????????????????# ????????????? | | ????????????????????????????????# #????????????? | | ????????????????????????????????# #????????????? | | ?????????????????????????w??????# #????????????? | | ????????????????????????????????# #????????????? | | ?????????????#################;##= #????????????? | | ?????????? [%=g= #????????????? | | ?????????? @ *%%*!* ; ""?????????? | | ?????????????????#############[##![w#????????????? | | ?????????????????????????# ! # #????????????? | | ?????????????????????????# # #????????????? | | ?????????????????????????# """ + #????????????? | | ?????????????????????????# """ # ?????? | | ?????????????????????????# """ # ?? | | ?????????????????????????# # ??? | | ?????????????????????????#####+######### ###/??? | | ?????????????????????????????# #????????? #?????? | | ?????????????????????????????# #?????????? #?????? | | ?????????????????????????????# #???????????#?????? | | ?????????????????????????????# #?????????????????? | | ?????????????????????????????# #?????????????????? | | ?????????????????????????????# #?????????????????? | | ?????????????????????????????#Y#?????????????????? | | ?????????????????????????????# #####?????????????? | | ???????????????????????????###Y#"T"##### #?????? | | ????????????????????????#### #?????? | | ???????????????????????##! ???? | | ???????????????????????#! """" ???? | | ???????????????????????#! """" ???? | | ???????????????????????#! """" ###+###????? | | ???????????????????????#! #??????????? | | ???????????????????????##! #??????????? | +----------------------------------------------------+ Best States ------------- Heat Dissipation 45 Energy Generation 11 Energy Capacity 250 Matter Stores 300 Matter Capacity 300 Sight Range 16 Terrain Scan Density 10 Armor Coverage 160 Evasion (%) 50 Item Schematics ----------------- None Robot Schematics ------------------ None Fabricated ------------ Nothing Repaired ---------- Nothing Studied --------- None Alien Tech Used ----------------- None Achievements -------------- Bumper Bots Fitting Room Live, Flee, And Rebuild Challenges ------------ None Game ------ Seed EncryptedMasterCapacitor Manual? 0 Play Time 00:34:54 Cumulative 44.3 hours Start 2025.12.02 @ 18:00:43 End 2025.12.03 @ 22:04:42 Sessions 10 Manual Loads 0 Difficulty Rogue Special Mode None Game No. 106 Rogue 99 Adventurer 7 Explorer 0 Win Type - Total 1 Types 1/0/0/0/0/0/0/0/0/0 Lore% 18 Gallery% 34 Achievement% 20 Wizard Run 0 Options --------- Layout 0 ASCII 0 Keyboard 1 Movement Vi Keybinds 0 Fullscreen 1 Font 18/SmallcapsGlow Map View 112x50 Zoom Use 15% Tactical HUD 1 Map Filters NONE Filters NONE Steam X RUN: ef6adf4f-753f-4aff-a5f9-d4f84c11aa77